Cogmind - Beta 13 @@@ ROGUE MODE // 2024.07.19 @ 12:08:20 Player: Castelle Result: Destroyed by Y-45 Defender with Heavy Assault Rifle Performance ------------- Evolutions (1) 500 Regions Visited (3) 600 Robots Destroyed (40) 200 Value Destroyed (883) 883 Prototype IDs (3) 60 Alien Tech Used (0) 0 Bonus (11) 11 TOTAL SCORE: 2254 Bonus ------- High Alert Combat Kills 11 Cogmind --------- Core Integrity 0/400 Matter 220/300 Energy 100/100 System Corruption 0% Temperature Cool (27) Movement Core (100) Ox1 Location -9/Storage Parts ------- > --- POWER (1) -------- (None) > --- PROPULSION (3) --- (None) > --- UTILITY (3) ------ Disposable Heat Sink Small Storage Unit Visual Processing Unit > --- WEAPON (2) ------- (None) > --- INVENTORY (8) ---- Advanced Targeting Computer Advanced Targeting Computer Peak State ------------ > --- POWER ------------ Improved Ion Engine > --- PROPULSION ------- Aluminum Leg Improved Aluminum Leg Improved Aluminum Leg > --- UTILITY ---------- Small Storage Unit Seismic Detector High-powered Tractor Beam > --- WEAPON ----------- Spread Laser Grenade Launcher > --- INVENTORY -------- Ion Engine Aluminum Leg Aluminum Leg Disposable Heat Sink Visual Processing Unit Advanced Targeting Computer Advanced Targeting Computer Small Laser [Rating: 15] Favorites ----------- Power Light Ion Engine Engine Light Ion Engine Propulsion Aluminum Leg Leg Aluminum Leg Utility Small Storage Unit Device Seismic Detector Storage Small Storage Unit Processor Visual Processing Unit Weapon Grenade Launcher Energy Gun Spread Laser Ballistic Gun Light Assault Rifle Ballistic Cannon Improved Light Cannon Launcher Grenade Launcher Build | -11 -10 -9 -9 ------- Run | Yrd Mat Mat Sto Slots Evolved 2 | . . 2 . Power . | . . . . Propulsion 1 | . . 1 . Utility 1 | . . 1 . Weapon . | . . . . Parts Attached 29 | 7 7 4 11 Power 4 | 1 1 . 2 Engine 4 | 1 1 . 2 Core . | . . . . Reactor . | . . . . Propulsion 8 | 2 1 2 3 Treads . | . . . . Leg 8 | 2 1 2 3 Wheel . | . . . . Hover . | . . . . Flight . | . . . . Utility 6 | 2 . 1 3 Device 4 | 1 . 1 2 Storage 1 | 1 . . . Processor 1 | . . . 1 Hackware . | . . . . Protection . | . . . . Artifact . | . . . . Weapon 11 | 2 5 1 3 Energy Gun 4 | 1 1 1 1 Energy Cannon . | . . . . Ballistic Gun 1 | 1 . . . Ballistic Cannon 1 | . . . 1 Launcher 5 | . 4 . 1 Special Weapon . | . . . . Impact Weapon . | . . . . Slashing Weapon . | . . . . Piercing Weapon . | . . . . Special Melee Weapon . | . . . . Unidentified Prototypes . | . . . . Parts Lost 16 | . 1 . 15 Power 2 | . . . 2 Propulsion 5 | . . . 5 Utility 3 | . . . 3 Weapon 6 | . 1 . 5 Highest Loss Streak 14 | . 1 . 14 To Critical Strikes . | . . . . Average Slot Usage (%) 97 | . 97 100 88 Engine 11 | . 13 11 9 Leg 30 | . 27 33 27 Device 19 | . 14 22 18 Storage 11 | . 14 11 11 Energy Gun 10 | . 7 11 11 Launcher 12 | . 17 11 6 Naked Turns . | . . . . Heaviest Build 20 | 11 15 16 20 Greatest Support 36 | 20 20 33 36 Greatest Overweight (x) 1 | . 1 . 1 Average Overweight (x) . | . . . . Largest Inventory Capacity 8 | 8 8 8 8 Average Capacity 7 | 6 8 8 8 Most Carried 8 | 3 8 8 8 Average Carried 6 | 1 5 6 6 Final Capacity 8 | 8 8 8 8 Final Carried 8 | 2 8 8 2 Class Distribution -------------------- 100% | Mutant Dominant Class ---------------- Mutant | -10/Materials Mutant | -9/Materials Mutant | -9/Storage Resources | -11 -10 -9 -9 ----------- Run | Yrd Mat Mat Sto Matter Collected 734 | 276 24 289 145 Remotely 434 | . . 289 145 Salvage Created 901 | 99 103 420 279 Parts 68 | 3 16 31 18 Haulers Intercepted 1 | . . 1 . Recyclers Shooed 3 | . . 3 . Parts Field Recycled . | . . . . Retrieved Matter . | . . . . Parts Self-Destructed . | . . . . Prevented . | . . . . Kills | -11 -10 -9 -9 ------- Run | Yrd Mat Mat Sto Combat Hostiles Destroyed 28 | . 11 10 7 Guns 10 | . . 5 5 AOE 18 | . 11 5 2 Classes Destroyed 11 | 2 3 5 1 Worker 2 | . 2 . . Builder 2 | . . 2 . Tunneler 1 | 1 . . . Hauler 1 | . . 1 . Recycler 3 | 1 . 2 . Operator 1 | . . . 1 Watcher 2 | . . 2 . Swarmer 12 | . 9 3 . Grunt 8 | . 2 2 4 Brawler 1 | . . 1 . Sentry 7 | . . 4 3 Best Kill Streak 8 | 2 4 8 3 Combat Bots Only 4 | . 3 4 3 Max Kills in Single Turn 3 | 1 3 3 2 Gunslinging . | . . . . Exploded 3 | . 3 3 2 Melee . | . . . . Uniques/NPCs Destroyed . | . . . . Combat | -11 -10 -9 -9 -------- Run | Yrd Mat Mat Sto Hostile Shots Fired 178 | . 17 28 133 Missed 64 | . 5 14 45 Damage Taken 1643 | . 228 201 1214 Core 484 | . 77 24 383 Absorbed by Shields . | . . . . Core Remaining (%) 84 | 100 69 . . Volleys Fired 60 | 6 8 16 30 Largest 2 | 2 2 2 2 Hottest 105 | 60 60 95 105 Shots Fired 101 | 12 15 32 42 Gun 60 | 12 . 16 32 Cannon 5 | . . . 5 Launcher 36 | . 15 16 5 Special . | . . . . Kinetic 11 | 6 . . 5 Thermal 54 | 6 . 16 32 Explosive 36 | . 15 16 5 Electromagnetic . | . . . . Robot Hit Streak 9 | 3 4 9 7 Robot Miss Streak 7 | 1 1 7 5 Penetration Max . | . . . . Secondary Targets . | . . . . Shots Hit Robots 70 | 7 7 23 33 Core Hits 86 | 3 15 41 27 Critical Kills . | . . . . Critical Parts Destroyed . | . . . . Critical Strikes . | . . . . Melee Attacks . | . . . . Impact . | . . . . Slashing . | . . . . Piercing . | . . . . Sneak Attacks . | . . . . Combat Hostiles . | . . . . Follow-up Attacks . | . . . . Damage Inflicted 2528 | 77 832 984 635 Guns 559 | 74 . 180 305 Cannons 110 | . . . 110 Explosions 1853 | . 832 802 219 Melee . | . . . . Ramming 6 | 3 . 2 1 Kinetic 139 | 29 . . 110 Thermal 530 | 45 . 180 305 Explosive 1853 | . 832 802 219 Electromagnetic . | . . . . Impact . | . . . . Slashing . | . . . . Piercing . | . . . . Highest Corruption 1 | . 1 . . Average Corruption 1 | . 1 . . Corruption Purged . | . . . . Corruption Blocked . | . . . . Effects 3 | . 3 . . Message Errors 2 | . 2 . . Heat Flow Errors 1 | . 1 . . Overload Shots . | . . . . Overflow Damage 35 | . 30 . 5 Projectiles . | . . . . Explosions 35 | . 30 . 5 Melee . | . . . . Knockbacks . | . . . . Impact . | . . . . Kinetic . | . . . . Secondary . | . . . . Self-Inflicted Damage 149 | . 108 . 41 Shots 5 | . 4 . 1 Rammed . | . . . . Targets Rammed 4 | 1 . 2 1 Kicked 4 | 1 . 2 1 Crushed . | . . . . Highest Temperature 459 | 40 158 84 459 Average Temperature 101 | 17 47 35 188 Received Heat Transfer 606 | . 24 75 507 Effects 3 | . . . 3 Shutdowns 1 | . . . 1 Energy Bleed 2 | . . . 2 Siege Activations . | . . . . Robots Corrupted . | . . . . Combat Hostiles . | . . . . Parts Fried . | . . . . Impact Corruptions . | . . . . Robots Melted . | . . . . Combat Hostiles . | . . . . Parts Melted . | . . . . Heat Transferred 865 | 100 . 225 540 Parts Sabotaged . | . . . . Parts Stolen . | . . . . Parts Stripped . | . . . . Power Chain Reactions . | . . . . Alert | -11 -10 -9 -9 ------- Run | Yrd Mat Mat Sto Peak Influence 433 | 10 229 433 324 Initial 182 | . 6 96 182 Average 110 | 2 100 86 250 Maximum Alert Level 2 | . 1 2 1 Low Security (%) 75 | 100 72 88 24 Level 1 22 | . 27 7 75 Level 2 1 | . . 3 . Level 3 . | . . . . Level 4 . | . . . . Level 5 . | . . . . High Security . | . . . . Max Security . | . . . . Squads Dispatched . | . . . . Investigation . | . . . . Extermination . | . . . . Reinforcement . | . . . . Assault . | . . . . Garrison . | . . . . Intercept . | . . . . Searches Triggered . | . . . . Construction Impeded . | . . . . Haulers Reinforced . | . . . . Active Scanning Responses . | . . . . Cargo Convoy Interrupts . | . . . . Stealth | -11 -10 -9 -9 --------- Run | Yrd Mat Mat Sto Distress Signals 4 | . . 2 2 Communications Jammed . | . . . . Distress Signals . | . . . . Times Spotted 40 | . 15 13 12 Peak Tracking Total 8 | . 3 5 8 Tactical Retreats . | . . . . Traps | -11 -10 -9 -9 ------- Run | Yrd Mat Mat Sto Traps Triggered 3 | . 3 . . Indirectly . | . . . . Trap Hack Attempts . | . . . . Triggered . | . . . . Disarmed . | . . . . Reprogrammed . | . . . . Reused . | . . . . Traps Extracted . | . . . . Installed . | . . . . Triggered . | . . . . Machines | -11 -10 -9 -9 ---------- Run | Yrd Mat Mat Sto Machines Disabled 4 | . 3 1 . Max in Single Turn 2 | . 2 1 . Machines Repaired . | . . . . Machines Dismantled . | . . . . Machines Sabotaged . | . . . . Overloaded Fab Kills . | . . . . Hacking | -11 -10 -9 -9 --------- Run | Yrd Mat Mat Sto Machines Accessed 6 | . 3 3 . Terminals 5 | . 3 2 . Fabricators . | . . . . Repair Stations . | . . . . Recycling Units . | . . . . Scanalyzers 1 | . . 1 . Garrison Access . | . . . . Total Hacks 18 | . 12 6 . Successful 8 | . 4 4 . Failed 10 | . 8 2 . Catastrophic 2 | . 2 . . Database Lockouts . | . . . . Manual 2 | . . 2 . Terminals 16 | . 12 4 . Fabricators . | . . . . Repair Stations . | . . . . Recycling Units . | . . . . Scanalyzers 2 | . . 2 . Garrison Access . | . . . . Terminal Hacks 7 | . 4 3 . Record 2 | . . 2 . Prototype ID Bank 1 | . 1 . . Branch Access Points 1 | . 1 . . Locate Traps 1 | . . 1 . Recall Investigation 1 | . 1 . . Zone Layout 1 | . 1 . . Fabricator Hacks . | . . . . Repair Station Hacks . | . . . . Recycling Unit Hacks . | . . . . Scanalyzer 1 | . . 1 . Insert Component 1 | . . 1 . Garrison Access Hacks . | . . . . Unauthorized Hacks . | . . . . Terminals . | . . . . Fabricators . | . . . . Repair Stations . | . . . . Recycling Units . | . . . . Scanalyzers . | . . . . Garrison Access . | . . . . Data Cores Recovered 1 | . . . 1 Used . | . . . . Hacking Detections 4 | . 3 1 . Full Trace Events 2 | . 2 . . Feedback Events . | . . . . Feedback Blocked . | . . . . Robot Schematics Acquired . | . . . . Robots Built . | . . . . Authchips . | . . . . Time . | . . . . Total Robot Build Rating . | . . . . Part Schematics Acquired . | . . . . Parts Built . | . . . . Authchips . | . . . . Time . | . . . . Total Part Build Rating . | . . . . Parts Repaired . | . . . . Time . | . . . . Parts Recycled . | . . . . Recycled Matter . | . . . . Retrieved Matter . | . . . . Retrieved Components . | . . . . Parts Scanalyzed 1 | . . 1 . Part Schematics Acquired . | . . . . Parts Damaged 1 | . . 1 . Bothacking | -11 -10 -9 -9 ------------ Run | Yrd Mat Mat Sto Used RIF Installer . | . . . . Robots Hacked . | . . . . Non-combat . | . . . . Combat . | . . . . Robot Hacks Applied . | . . . . Relay Couplers Released . | . . . . Fabnet Peak Effective % . | . . . . Robots Rewired . | . . . . Allies Hacked . | . . . . Hacks Repelled . | . . . . Allies | -11 -10 -9 -9 -------- Run | Yrd Mat Mat Sto Total Allies . | . . . . Largest Group . | . . . . Highest-Rated Group . | . . . . Highest-Rated Ally . | . . . . Total Orders . | . . . . Ally Attacks . | . . . . Total Damage . | . . . . Kills . | . . . . Allies Corrupted . | . . . . Allies Melted . | . . . . Intel | -11 -10 -9 -9 ------- Run | Yrd Mat Mat Sto Robot Analysis Total . | . . . . Derelict Logs Recovered . | . . . . Drone Launches . | . . . . Drone Recoveries . | . . . . Exploration | -11 -10 -9 -9 ------------- Run | Yrd Mat Mat Sto Turns Passed 2014 | 101 515 1093 305 Spaces Moved 924 | 63 365 320 176 Core 11 | 7 . . 4 Treads . | . . . . Legs 913 | 56 365 320 172 Wheels . | . . . . Hover . | . . . . Flight . | . . . . Fastest Speed 50 | 50 120 120 100 Average Speed 119 | 112 120 120 121 Slowest Speed 190 | 120 190 120 190 Overloaded Moves . | . . . . Propulsion Burnouts . | . . . . Robots Hopped . | . . . . Cave-ins Triggered . | . . . . Exploration Rate (%) 39 | 5 76 34 41 Regions Visited 3 Branch Regions 1 Pre-discovered Areas 1 | . . . 1 Known Exits Taken . | . . . . Unknown Exits Taken 3 | 1 1 1 . Scrap Searched . | . . . . Spaces Dug . | . . . . Terrain Destroyed 219 | . 97 87 35 Melee . | . . . . Projectile . | . . . . AOE 219 | . 97 87 35 Terrain Rammed . | . . . . Walls Destroyed . | . . . . Machines Disabled . | . . . . Actions | -11 -10 -9 -9 --------- Run | Yrd Mat Mat Sto Total 1725 | 79 426 997 223 Wait 681 | . 31 650 . Move 922 | 63 364 319 176 Hop . | . . . . Pick Up 17 | 3 10 4 . Fast Attach 16 | 6 6 . 4 Attach 10 | 1 . 3 6 Detach 1 | . 1 . . Swap 3 | . 1 1 1 Drop 9 | . 5 2 2 Fire 60 | 6 8 16 30 Melee . | . . . . Ram . | . . . . Kick 3 | . . 2 1 Crush . | . . . . Escape Stasis . | . . . . Rewire 3 | . . . 3 Trap . | . . . . Miscellaneous . | . . . . Route ------- -11/Scrapyard -10/Materials (discovered 3 exits: *Mat x2 / Min) -9/Materials (discovered 2 exits: [*Min] / *Sto) -9/Storage History --------- Turn | Location | Event 6 | -11/Scrapyard | Discovered new exit (range 15) 102 | -11/Scrapyard | Entered Materials 238 | -10/Materials | Discovered new exit (range 8) 307 | -10/Materials | Build established: Mutant 563 | -10/Materials | Discovered new exit (range 11) 602 | -10/Materials | Identified exit to Mines 617 | -10/Materials | Entered another Materials area 617 | -9/Materials | Evolved 2 slots: Propulsion x1, Utility x1 1462 | -9/Materials | Discovered new exit (range 13) 1587 | -9/Materials | Discovered new exit (range 11) 1710 | -9/Materials | Entered Storage 1914 | -9/Storage | Learned location of Armory (-3) 1980 | -9/Storage | Core integrity fell below 50% 1999 | -9/Storage | Core integrity fell below 20% 2015 | -9/Storage | Destroyed by Y-45 Defender with Heavy Assault Rifle Last Messages --------------- 01995_ R-06 Scavenger collects Aluminum Leg. 01995_ R-06 Scavenger collects Ion Engine. 01997_ K-01 Serf collects debris. 01998_ Acquired Imp. Light Cannon. 01998_ R-06 Scavenger collects Sml. Laser. 02000_ K-01 Serf collects debris. 02001_ M-13 Machinist repairs G-34 Mercenary. 02002_ R-06 Scavenger collects Heat Sink. 02004_ K-01 Serf collects debris. 02009_ Imp. Light Cannon destroyed. 02009_ R-06 Scavenger collects Hvy. Assault Rifle. 02009_ Aluminum Leg destroyed. 02010_ Acquired Disposable Heat Sink. 02011_ The unstable cave ceiling collapses. 02011_ K-01 Serf collects debris. 02012_ M-13 Machinist repairs Y-45 Defender. 02014_ K-01 Serf collects debris. 02014_ M-13 Machinist repairs Heat Sink. 02015_ Critical hit (Burn: +37). Map ----- +----------------------------------------------------+ | | | | | | | | | | | | | | | | | | | | | ?????????????????????????????????????????????????? | | ?????????????????????????????????????????????????? | | ?????????????????????????????????????????????????? | | ?????????????????????????????????????????????????? | | ?????????????????????????????????????????????????? | | ???????????????????????????????####??????????????? | | ??????????????????????????????? ###??#?????????? | | ?????????????????????????????? ?? ??????????? | | ?????????????????????????????? ?? ???????????? | | ????????????????????????????? ? ?????????????? | | ????????????????????????????# ?? #??????????????? | | ???????????????????######## #? w#???????????????? | | #??????????????????# # #???????????????? | | #??????????????????# % #???????????????? | | #??????????????????# Y % #???????????????? | | #??????????????????# @mg #???????????????? | | #??????????????????# % % + ????????????? | | #######+##????????# ^# """??????????? | | #????????# g # #???"???????????? | | #????????# r # #???????????????? | | #?#####??# k% #? #???????????????? | | """"" #?# #??## % ####? #???????????????? | | """"" #?# #???# ####????? #???????????????? | | """"" #?# #???## ##??????? #???????????????? | | """"" ####+###### #????????#???????????????? | | #????????????????????????? | | #????????????????????????? | | ""T"" ####????????????????????????? | | """"" ????????????????????? | | ????????????????? | | ?????????????????? | | ##+#+#########+############### ?????????????????? | | #???? ??????????????????????????????????? | | ! #??? ???????????????????????????????????? | | ! #?? ????????????????????????????????????? | | " "#?| ????????????????????????????????????? | | " !![ T# ?????????????????????????????????????? | | " ![[ "# #??????????????????????????????????????? | | ![[ ##???????????????????????????????????????? | | ############?????????????????????????????????????? | +----------------------------------------------------+ Best States ------------- Heat Dissipation 28 Coolant Potential 50 Energy Generation 12 Energy Capacity 265 Matter Stores 300 Matter Capacity 300 Sight Range 18 Terrain Scan Density 10 Evasion (%) 55 Item Schematics ----------------- None Robot Schematics ------------------ None Fabricated ------------ Nothing Alien Tech Used ----------------- None Achievements -------------- None Challenges ------------ None Game ------ Seed ColdHeartRay Manual? 0 Play Time 00:20:01 Cumulative 16.6 hours Start 2024.07.19 @ 11:49:53 End 2024.07.19 @ 12:08:20 Sessions 1 Manual Loads 0 Difficulty Rogue Special Mode None Game No. 16 Rogue 11 Adventurer 5 Explorer 0 Win Type - Total 0 Types 0/0/0/0/0/0/0/0/0 Lore% 9 Gallery% 22 Achievement% 23 Wizard Run 0 Options --------- Layout 2 ASCII 0 Keyboard 1 Movement Numpad Keybinds 0 Fullscreen 1 Font 24/Smallcaps Map View 50x44 Zoom Use 0% Tactical HUD 1 Map Filters NONE Filters NONE Steam 1 RUN: d2ddf6e6-87e0-4168-a84b-fc5a2dcf84d7